{"text_format":"3","workbook":"xlsx","n_sheets":2,"sheets":["Budget","dropdown"],"not_rendered":{"images":2,"defined_names":3},"read":"whole","date_system":"1900"}

{"sheet":"Budget","index":0,"n_rows":65,"n_cols":7,"rows_kept":65,"merged":[[4,0,4,6],[6,0,6,7],[7,0,7,7],[8,0,8,7],[10,0,10,6],[40,0,41,0]]}
[]
[]
[]
[]
["Betreibungsrechtliches Existenzminimum für den Kanton Schwyz"]
[]
["Die Berechnung des betreibungsrechtlichen Existenzminimums ist eine Ermessenssache."]
["Wir haben die Tabelle nach bestem Wissen und Gewissen zusammengestellt, "]
["übernehmen aber keine Garantie für die Richtigkeit der Ergebnisse. "]
[]
["[NAME]"]
[]
["Einkommen",null,null,"Mann","Frau",null,"Total"]
[]
["Nettoeinkommen inkl. Provisionen (Durchschnitt)",{"$nulls":5},{"$f":"ROUND(SUM(D15:E15)/5,2)*5","v":0}]
["Hereinkommende Erwachsenenalimente (+)*",{"$nulls":5},{"$f":"ROUND(SUM(D16:E16)/5,2)*5","v":0}]
["Andere Einnahmen",{"$nulls":5},{"$f":"ROUND(SUM(D17:E17)/5,2)*5","v":0}]
[" -  Abgehende Alimentenzahlungen (-)**",{"$nulls":5},{"$f":"ROUND(SUM(D18:E18)/5,2)*5","v":0}]
[]
["Total Einkommen",null,null,{"$f":"SUM(D15:D19)","v":0},{"$f":"SUM(E15:E19)","v":0},{"$f":"SUM(F15:F19)","v":0},{"$f":"SUM(G15:G19)","v":0}]
[]
["Einkommen in %",null,null,{"$f":"D20/$G$20","v":{"$error":"#DIV/0!"}},{"$f":"E20/$G$20","v":{"$error":"#DIV/0!"}},null,{"$f":"G20/$G$20","v":{"$error":"#DIV/0!"}}]
[]
["Ausgaben",null,null,"Mann ","Frau",null,"Total"]
[]
["Monatlicher Grundbetrag Erwachsene"]
["- Alleinstehend",{"$nulls":5},{"$f":"IF(B27>0,1200)+0","v":0}]
["- Alleinerziehend",null,null,"Zutreffendes",null,null,{"$f":"IF(B28>0,1350)+0","v":0}]
["- Ehepaar / eingetragene Partnerschaft",null,null,"ankreuzen, ",null,null,{"$f":"IF(B29>0,2000)+0","v":0}]
["- Wohngemeinschaften:  siehe Richtlinien",null,null,"bzw. eintragen"]
["Zuschlag Kinder"]
["- Anzahl Kinder bis 10 Jahre",{"$nulls":5},{"$f":"IF(B32>0,B32*400,\"\")","v":""}]
["- Anzahl Kinder über 10 Jahre",{"$nulls":5},{"$f":"IF(B33>0,B33*600,\"\")","v":""}]
[]
[]
["Mietzins"]
["Heiz- und Nebenkosten"]
["Krankenkassenprämien"]
["Beiträge an Berufsverbände",{"$nulls":5},{"$f":"E39+D39","v":0}]
["Auswärtige Verpflegung",{"$nulls":5},{"$f":"E40+D40","v":0}]
["Erhöhter Nahrungsbedarf bei \nSchwerarbeit, Schicht- und Nachtarbeit"]
[{"$nulls":6},{"$f":"E42+D42","v":0}]
["Überdurchschnittlicher Kleiderverbrauch",{"$nulls":5},{"$f":"E43+D43","v":0}]
["Fahrten zum Arbeitsplatz",{"$nulls":5},{"$f":"E44+D44","v":0}]
["Kinderbetreuung"]
["Schulung der Kinder"]
["Jahresfranchise Krankenkasse"]
["Gesundheitskosten"]
["Weiteres"]
[]
["Total Ausgaben",{"$nulls":5},{"$f":"SUM(G26:G49)","v":0}]
[]
[{"$nulls":3},"Mann","Frau"]
["Einkommen",null,null,{"$f":"D20","v":0},{"$f":"E20","v":0}]
["Anteil am familiären Existenzminimum",null,null,{"$f":"ROUND(($G$51*D22)/5,2)*5","v":{"$error":"#DIV/0!"}},{"$f":"ROUND(($G$51*E22)/5,2)*5","v":{"$error":"#DIV/0!"}}]
["Pfändungsquote pro Monat",null,null,{"$f":"D54-D55","v":{"$error":"#DIV/0!"}},{"$f":"E54-E55","v":{"$error":"#DIV/0!"}}]
["gegebenenfalls zuzüglich 13. Monatslohn, Gratifikationen usw."]
[]
["* Hereinkommende Kinderalimente werden nicht in diese Tabelle integriert."]
["Sie sind für das Kind bestimmt. Der «Zuschlag Kinder», Krankenkasse, "]
["Schulkosten usw. werden grundsätzlich aus dem Aliment bezahlt. "]
["Ein allfälliger Überschuss ist für das Kind bestimmt."]
[]
["** Sofern das Einkommen der beiden Partner das Existenzminimum nicht"]
["deckt, werden die Alimentenzahlungen unter den Ausgaben erfasst."]

{"sheet":"dropdown","index":1,"n_rows":5,"n_cols":1,"rows_kept":5,"hidden":true}
["Bitte Haushaltsform wählen"]
["Grundbetrag für Alleinstehende"]
["Grundbetrag für Alleinerziehende"]
["Grundbetrag für Ehepaare; Paare mit Kindern; eingetragene Partnerschaften"]
["Grundbetrag für kinderlose kostendeckende Wohn- und Lebensgemeinschaften"]